Cogmind - Beta 16 @@@ ROGUE MODE // 2025.11.11 @ 17:57:01 Player: unq Result: Destroyed by D-53 Grenadier with Mini Grenade Launcher Performance ------------- Evolutions (0) 0 Regions Visited (4) 800 Robots Destroyed (50) 250 Value Destroyed (971) 971 Prototype IDs (2) 40 Alien Tech Used (0) 0 Bonus (25) 25 TOTAL SCORE: 2086 Bonus ------- Follower Combat Kills 25 Cogmind --------- Core Integrity 0/250 Matter 172/300 Energy 265/265 System Corruption 0% Temperature Cool (0) Movement Treading (160) Location -9/Mines Parts ------- > --- POWER (1) -------- Improved Ion Engine > --- PROPULSION (2) --- Light Treads Light Treads > --- UTILITY (2) ------ Large Storage Unit Seismic Detector > --- WEAPON (2) ------- Light Assault Rifle > --- INVENTORY (15) --- Light Ion Engine Light Treads Light Treads Light Treads Improved Heat Sink High-capacity Matter Pod (200) Light Armor Plating Hacking Suite Hacking Suite Medium Laser Particle Gun Mining Laser Heavy Explosive Trap Peak State ------------ > --- POWER ------------ Improved Ion Engine > --- PROPULSION ------- Light Treads Light Treads > --- UTILITY ---------- Large Storage Unit Seismic Detector > --- WEAPON ----------- Particle Gun Assault Rifle > --- INVENTORY -------- Light Ion Engine Light Treads Light Treads Light Treads Improved Heat Sink High-capacity Matter Pod Light Armor Plating Hacking Suite Hacking Suite Medium Laser Light Assault Rifle Grenade Launcher Rocket Launcher Mining Laser Heavy Explosive Trap [Rating: 11] Favorites ----------- Power Ion Engine Engine Ion Engine Propulsion Light Treads Treads Light Treads Utility Large Storage Unit Device Seismic Detector Storage Large Storage Unit Protection Light Armor Plating Weapon Assault Rifle Energy Gun Medium Laser Ballistic Gun Assault Rifle Ballistic Cannon Light Cannon Launcher Grenade Launcher Special Weapon Mining Laser Build | -11 -10 -10 -10 -9 ------- Run | Yrd Mat Min Exi Min Slots Evolved . | . . . . . Power . | . . . . . Propulsion . | . . . . . Utility . | . . . . . Weapon . | . . . . . Parts Attached 34 | 8 16 5 . 5 Power 7 | 2 3 2 . . Engine 7 | 2 3 2 . . Core . | . . . . . Reactor . | . . . . . Propulsion 7 | 2 2 2 . 1 Treads 7 | 2 2 2 . 1 Leg . | . . . . . Wheel . | . . . . . Hover . | . . . . . Flight . | . . . . . Utility 8 | 2 5 . . 1 Device 3 | 1 2 . . . Storage 2 | 1 1 . . . Processor . | . . . . . Hackware . | . . . . . Protection 3 | . 2 . . 1 Artifact . | . . . . . Weapon 12 | 2 6 1 . 3 Energy Gun 4 | 1 2 . . 1 Energy Cannon . | . . . . . Ballistic Gun 2 | 1 . . . 1 Ballistic Cannon 1 | . 1 . . . Launcher 2 | . 1 . . 1 Special Weapon 3 | . 2 1 . . Impact Weapon . | . . . . . Slashing Weapon . | . . . . . Piercing Weapon . | . . . . . Special Melee Weapon . | . . . . . Unidentified Prototypes . | . . . . . Parts Lost 9 | . 4 2 . 3 Power 2 | . 1 1 . . Propulsion . | . . . . . Utility 3 | . 2 1 . . Weapon 4 | . 1 . . 3 Highest Loss Streak 2 | . 2 2 . 2 To Critical Strikes . | . . . . . Average Backups 13 | 3 13 14 14 12 Power 1 | . 1 . 1 1 Propulsion 2 | . 1 3 3 3 Utility 5 | . 5 5 5 5 Weapon 4 | 1 4 5 5 3 Tool/Special . | . . . . . Unused Backups 12 | . 6 2 . 4 Power . | . . . . . Propulsion 1 | . 1 . . . Utility 7 | . 2 1 . 4 Weapon 3 | . 2 1 . . Tool/Special 1 | . 1 . . . Average Slot Usage (%) 99 | . 99 99 100 93 Engine 13 | . 14 13 14 14 Treads 27 | . 27 28 28 28 Device 11 | . 10 13 14 9 Storage 14 | . 14 14 14 14 Protection 2 | . 3 . . 4 Energy Gun 8 | . 9 11 . 1 Ballistic Gun 9 | . 6 14 14 9 Ballistic Cannon 3 | . 7 . . . Special Weapon 4 | . 3 2 14 . Peak Build Rating 11 | 7 8 10 10 11 Average Rating 8 | 6 7 9 10 9 On Entrance 7 | . 7 8 10 10 Avg Prop Armor Cover (%) . | . . . . . Naked Turns . | . . . . . Heaviest Build 34 | 14 33 32 31 34 Greatest Support 40 | 40 40 40 40 40 Greatest Overweight (x) . | . . . . . Average Overweight (x) . | . . . . . Largest Inventory Capacity 15 | 8 15 15 15 15 Average Capacity 14 | 7 14 15 15 15 Most Carried 15 | 5 15 15 15 15 Average Carried 13 | 3 13 14 15 13 Final Capacity 15 | 8 15 15 15 15 Final Carried 15 | 5 15 15 15 13 Class Distribution -------------------- 60% | Mutant 39% | Scavenger-Mutant Dominant Class ---------------- Mutant | -10/Materials Scavenger-Mutant | -10/Mines Scavenger-Mutant | -10/Exiles Mutant | -9/Mines Resources | -11 -10 -10 -10 -9 ----------- Run | Yrd Mat Min Exi Min Matter Collected 1507 | 273 1051 122 . 61 Remotely . | . . . . . Salvage Created 1374 | 156 964 205 . 49 Parts 104 | 12 75 17 . . Haulers Intercepted 2 | . 2 . . . Recyclers Shooed 1 | 1 . . . . Parts Field Recycled . | . . . . . Retrieved Matter . | . . . . . Parts Self-Destructed . | . . . . . Prevented . | . . . . . Parts Restored . | . . . . . Kills | -11 -10 -10 -10 -9 ------- Run | Yrd Mat Min Exi Min Combat Hostiles Destroyed 45 | . 27 3 . 15 Guns 16 | . 13 3 . . Cannons 14 | . 14 . . . AOE 15 | . . . . 15 Classes Destroyed 11 | 2 6 2 . 1 Worker 3 | . 3 . . . Builder 2 | . . 2 . . Tunneler 6 | 5 . 1 . . Hauler 2 | . 2 . . . Recycler 1 | 1 . . . . Operator 3 | . 3 . . . Watcher 3 | . 3 . . . Swarmer 12 | . 12 . . . Grunt 16 | . 15 1 . . Sentry 2 | . . 2 . . Assembled 15 | . . . . 15 Best Kill Streak 14 | 2 4 2 . 14 Combat Bots Only 14 | . 3 2 . 14 Max Kills in Single Turn 4 | 1 2 1 . 4 Gunslinging . | . . . . . Exploded 4 | . . . . 4 Melee . | . . . . . Uniques/NPCs Destroyed . | . . . . . Combat | -11 -10 -10 -10 -9 -------- Run | Yrd Mat Min Exi Min Hostile Shots Fired 202 | . 126 32 . 44 Missed 47 | . 28 5 . 14 Hits 155 | . 98 27 . 30 Melee 1 | . . . . 1 Projectile 154 | . 98 27 . 29 AOE 6 | . . . . 6 Critical Strikes 1 | . . 1 . . Part Disruptions 1 | . . . . 1 Damage Taken 1963 | . 904 432 . 627 Core 288 | . 81 68 . 139 Absorbed by Shields . | . . . . . Regen/Repaired (Parts) 106 | . 106 . . . Core Remaining (%) 100 | 100 . . . . Volleys Fired 146 | 19 95 20 . 12 Largest 2 | 2 2 2 . 2 Hottest 100 | 60 100 100 . 53 Shots Fired 256 | 38 170 32 . 16 Gun 165 | 38 97 26 . 4 Cannon 53 | . 53 . . . Launcher 13 | . 1 . . 12 Special 25 | . 19 6 . . Kinetic 135 | 19 98 14 . 4 Thermal 78 | 19 41 18 . . Explosive 13 | . 1 . . 12 Electromagnetic 30 | . 30 . . . Robot Hit Streak 33 | 7 10 33 . 3 Robot Miss Streak 6 | 2 6 . . 3 Penetration Max . | . . . . . Secondary Targets 3 | . 3 . . . Max Gunslinging Chain 1 | . 1 . . . Shots Hit Robots 146 | 26 88 24 . 8 Core Hits 86 | 7 46 7 . 26 Critical Kills 1 | . 1 . . . Critical Parts Destroyed . | . . . . . Critical Strikes 8 | . 5 3 . . Burn 5 | . 2 3 . . Destroy 1 | . 1 . . . Blast 2 | . 2 . . . Melee Attacks . | . . . . . Impact . | . . . . . Slashing . | . . . . . Piercing . | . . . . . Sneak Attacks . | . . . . . Combat Hostiles . | . . . . . Follow-up Attacks . | . . . . . Damage Inflicted 3183 | 321 1499 299 . 1064 Guns 1347 | 321 701 296 . 29 Cannons 653 | . 653 . . . Explosions 1180 | . 145 . . 1035 Melee . | . . . . . Ramming 3 | . . 3 . . Kinetic 1340 | 169 995 147 . 29 Thermal 607 | 152 306 149 . . Explosive 1073 | . 38 . . 1035 Electromagnetic 160 | . 160 . . . Impact . | . . . . . Slashing . | . . . . . Piercing . | . . . . . Highest Corruption . | . . . . . Average Corruption . | . . . . . Corruption Purged . | . . . . . Corruption Blocked . | . . . . . Overload Shots . | . . . . . Overflow Damage 76 | . . . . 76 Projectiles . | . . . . . Explosions 76 | . . . . 76 Melee . | . . . . . Knockbacks 6 | . 6 . . . Impact . | . . . . . Kinetic 5 | . 5 . . . Secondary 1 | . 1 . . . Self-Inflicted Damage 61 | . . . . 61 Shots 3 | . . . . 3 Rammed . | . . . . . Targets Rammed 1 | . . 1 . . Kicked . | . . . . . Crushed 1 | . . 1 . . Highest Temperature 156 | . 156 154 . 30 Average Temperature 37 | . 33 58 . 12 Received Heat Transfer 426 | . 222 144 . 60 Siege Activations . | . . . . . Martial Activations . | . . . . . Shielding Activations . | . . . . . Robots Disrupted . | . . . . . Combat Hostiles . | . . . . . Robots Corrupted . | . . . . . Combat Hostiles . | . . . . . Parts Fried . | . . . . . Impact Corruptions . | . . . . . Robots Melted . | . . . . . Combat Hostiles . | . . . . . Parts Melted . | . . . . . Heat Transferred 1847 | 350 831 666 . . Parts Sabotaged . | . . . . . Parts Stolen . | . . . . . Parts Stripped . | . . . . . Power Chain Reactions 2 | . 2 . . . Alert | -11 -10 -10 -10 -9 ------- Run | Yrd Mat Min Exi Min Maximum Alert Level 1 | . 1 . . . Low Security (%) 97 | 100 95 100 . 100 Level 1 2 | . 4 . . . Level 2 . | . . . . . Level 3 . | . . . . . Level 4 . | . . . . . Level 5 . | . . . . . High Security . | . . . . . Max Security . | . . . . . Peak Influence 291 | 10 291 56 . 11 Initial 33 | . . 33 . . Average 46 | . 73 6 . 1 Influence Increases 1097 | 30 912 117 . 38 Destroy 0b10 Robot/C 620 | . 540 80 . . Destroy 0b10 Robot/NC 100 | 30 55 15 . . Destroy Leader 110 | . 100 10 . . Allied During Kill 6 | . . 6 . . Successful Hack 32 | . 32 . . . Select Force Hacks 60 | . 60 . . . Disable Machine 45 | . 45 . . . Destroy Structure 64 | . 20 6 . 38 Lose Combat Pursuer 60 | . 60 . . . Influence Decreases 1097 | 30 825 204 . 38 Entered New Map 54 | . . 54 . . Time Decay 649 | 30 485 130 . 4 Lost Part 76 | . 40 20 . 16 Lost Ally 18 | . . . . 18 Purge Threat 300 | . 300 . . . Squads Dispatched 4 | . 4 . . . Investigation 3 | . 3 . . . Extermination . | . . . . . Reinforcement 1 | . 1 . . . Assault . | . . . . . Garrison . | . . . . . Intercept . | . . . . . Searches Triggered . | . . . . . Construction Impeded . | . . . . . Haulers Reinforced . | . . . . . Active Scanning Responses . | . . . . . Cargo Convoy Interrupts . | . . . . . Stealth | -11 -10 -10 -10 -9 --------- Run | Yrd Mat Min Exi Min Distress Signals 3 | . 3 . . . Communications Jammed . | . . . . . Distress Signals . | . . . . . Times Spotted 70 | . 45 4 . 21 Peak Tracking Total 18 | . 5 2 . 18 Tactical Retreats 4 | . 3 . . 1 Traps | -11 -10 -10 -10 -9 ------- Run | Yrd Mat Min Exi Min Traps Triggered 1 | . 1 . . . Indirectly . | . . . . . Trap Hack Attempts . | . . . . . Triggered . | . . . . . Disarmed . | . . . . . Reprogrammed . | . . . . . Reused . | . . . . . Traps Extracted . | . . . . . Installed . | . . . . . Triggered . | . . . . . Most Traps Carried 1 | . . 1 1 1 Machines | -11 -10 -10 -10 -9 ---------- Run | Yrd Mat Min Exi Min Machines Disabled 3 | . 3 . . . Max in Single Turn 2 | . 2 . . . Machines Repaired . | . . . . . Machines Dismantled . | . . . . . Machines Sabotaged . | . . . . . Overloaded Fab Kills . | . . . . . Hacking | -11 -10 -10 -10 -9 --------- Run | Yrd Mat Min Exi Min Machines Accessed 12 | . 11 . 1 . Terminals 8 | . 8 . . . Fabricators . | . . . . . Repair Stations 1 | . 1 . . . Recycling Units 2 | . 2 . . . Scanalyzers . | . . . . . Garrison Access . | . . . . . Total Hacks 39 | . 35 . 4 . Successful 26 | . 22 . 4 . Failed 13 | . 13 . . . Catastrophic 1 | . 1 . . . Database Lockouts . | . . . . . Manual 18 | . 18 . . . Terminals 27 | . 27 . . . Fabricators . | . . . . . Repair Stations 4 | . 4 . . . Recycling Units 4 | . 4 . . . Scanalyzers . | . . . . . Garrison Access . | . . . . . Terminal Hacks 14 | . 10 . 4 . Record 4 | . . . 4 . Prototype ID Bank 1 | . 1 . . . Emergency Access Points 1 | . 1 . . . Unreport Threat 2 | . 2 . . . Locate Traps 2 | . 2 . . . Transport Status 1 | . 1 . . . Hauler Manifests 2 | . 2 . . . Registered Components 1 | . 1 . . . Fabricator Hacks . | . . . . . Repair Station Hacks 4 | . 4 . . . Scan Component 2 | . 2 . . . Repair 2 | . 2 . . . Recycling Unit Hacks . | . . . . . Scanalyzer . | . . . . . Garrison Access Hacks . | . . . . . Unauthorized Hacks 8 | . 8 . . . Terminals 6 | . 6 . . . Botnet 1 | . 1 . . . Skim 5 | . 5 . . . Fabricators . | . . . . . Repair Stations . | . . . . . Recycling Units 2 | . 2 . . . Tunnel 2 | . 2 . . . Scanalyzers . | . . . . . Garrison Access . | . . . . . Data Cores Recovered 2 | . 2 . . . Used . | . . . . . Hacking Detections 10 | . 10 . . . Full Trace Events . | . . . . . Feedback Events . | . . . . . Feedback Blocked . | . . . . . Robot Schematics Acquired . | . . . . . Robots Built . | . . . . . Authchips . | . . . . . Time . | . . . . . Total Robot Build Rating . | . . . . . Part Schematics Acquired . | . . . . . Parts Built . | . . . . . Authchips . | . . . . . Time . | . . . . . Total Part Build Rating . | . . . . . Part Studies Acquired . | . . . . . Parts Repaired 2 | . 2 . . . Time 52 | . 52 . . . Parts Recycled . | . . . . . Recycled Matter . | . . . . . Retrieved Matter . | . . . . . Retrieved Components . | . . . . . Parts Scanalyzed . | . . . . . Part Schematics Acquired . | . . . . . Parts Damaged . | . . . . . Bothacking | -11 -10 -10 -10 -9 ------------ Run | Yrd Mat Min Exi Min Used RIF Installer . | . . . . . Robots Hacked . | . . . . . Non-combat . | . . . . . Combat . | . . . . . Robot Hacks Applied . | . . . . . Relay Couplers Released . | . . . . . Fabnet Peak Effective % . | . . . . . Robots Rewired . | . . . . . Allies Hacked . | . . . . . Hacks Repelled . | . . . . . Allies | -11 -10 -10 -10 -9 -------- Run | Yrd Mat Min Exi Min Total Allies 3 | . . 3 . . Largest Group 3 | . . 3 2 2 Highest-Rated Group 40 | . . 40 32 32 Highest-Rated Ally 16 | . . 16 16 16 Total Orders . | . . . . . Ally Attacks 11 | . . 9 . 2 Total Damage 104 | . . 90 . 14 Kills 1 | . . 1 . . Allies Corrupted . | . . . . . Allies Melted . | . . . . . Intel | -11 -10 -10 -10 -9 ------- Run | Yrd Mat Min Exi Min Active Infowar (turns) 3430 | 136 1602 1116 516 60 Seismic 3430 | 136 1602 1116 516 60 Robot Analysis Total . | . . . . . Derelict Logs Recovered 1 | . . 1 . . Drone Launches . | . . . . . Drone Recoveries . | . . . . . Exploration | -11 -10 -10 -10 -9 ------------- Run | Yrd Mat Min Exi Min Turns Passed 4182 | 222 2190 1172 516 82 Spaces Moved 2111 | 95 997 668 323 28 Core 2 | 2 . . . . Treads 2109 | 93 997 668 323 28 Legs . | . . . . . Wheels . | . . . . . Hover . | . . . . . Flight . | . . . . . Fastest Speed 50 | 50 160 160 160 160 Average Speed 159 | 157 160 160 160 160 Slowest Speed 160 | 160 160 160 160 160 Overloaded Moves . | . . . . . Propulsion Burnouts . | . . . . . Robots Hopped . | . . . . . Potential Cave-ins . | . . . . . Cave-ins Triggered . | . . . . . Exploration Rate (%) 56 | 5 98 100 69 10 Regions Visited 4 Branch Regions 3 Pre-discovered Areas 5 | . 3 1 1 . Known Exits Taken 1 | . . . 1 . Unknown Exits Taken 3 | 1 1 1 . . Scrap Searched 1 | . . 1 . . Spaces Dug 19 | . 13 6 . . Terrain Destroyed 109 | . 21 6 . 82 Melee . | . . . . . Projectile 24 | . 18 6 . . AOE 85 | . 3 . . 82 Terrain Rammed . | . . . . . Walls Destroyed . | . . . . . Machines Disabled . | . . . . . Actions | -11 -10 -10 -10 -9 --------- Run | Yrd Mat Min Exi Min Total 2606 | 126 1384 727 322 47 Wait 242 | . 223 19 . . Move 2107 | 94 996 667 322 28 Hop . | . . . . . Pick Up 35 | 5 25 5 . . Fast Attach 7 | 6 1 . . . Attach 10 | 1 5 2 . 2 Detach . | . . . . . Swap 37 | 1 24 7 . 5 Drop 21 | . 15 6 . . Fire 146 | 19 95 20 . 12 Melee . | . . . . . Ram . | . . . . . Kick . | . . . . . Crush 1 | . . 1 . . Escape Stasis . | . . . . . Rewire . | . . . . . Trap . | . . . . . Miscellaneous . | . . . . . Route ------- -11/Scrapyard -10/Materials (discovered 4 exits: [*Mat x2] / [*Min] / [*Sub]) -10/Mines (discovered 4 exits: [*Mat x2] / *Exi / [*Sub]) -10/Exiles (discovered 2 exits: *Min x2) -9/Mines History --------- Turn | Location | Event 21 | -11/Scrapyard | Discovered new exit (range 16) 223 | -11/Scrapyard | Entered Materials 307 | -10/Materials | Build established: Mutant 761 | -10/Materials | Discovered new exit (range 14) 763 | -10/Materials | Discovered new exit (range 11) 805 | -10/Materials | Repaired Lgt. Treads 832 | -10/Materials | Repaired Assault Rifle 1238 | -10/Materials | Learned 2 Storage zone layouts 1281 | -10/Materials | Learned 4 Recycling zone layouts 1314 | -10/Materials | Loaded intel: 2 recycling unit locations 1335 | -10/Materials | Learned location of Recycling (-7) 1346 | -10/Materials | Learned 2 Storage zone layouts 1394 | -10/Materials | Learned location of 2 exits from Subcaves 1410 | -10/Materials | Discovered new exit (range 5) 2024 | -10/Materials | Discovered new exit (range 3) 2413 | -10/Materials | Entered Mines 2458 | -10/Mines | Core integrity fell below 50% 2577 | -10/Mines | Deemed a non-threat by the Exiles lab entrance 2584 | -10/Mines | Discovered new exit (range 5) 2744 | -10/Mines | Build established: Scavenger-Mutant 2844 | -10/Mines | Assisted by bots powering up and referring to "LRC-V3" 2902 | -10/Mines | Found a hidden stash of uninstalled traps 2925 | -10/Mines | Discovered new exit (range 7) 3026 | -10/Mines | Discovered new exit (range 14) 3185 | -10/Mines | Received a Rocket Launcher from a helpful Derelict 3339 | -10/Mines | Discovered new exit (range 10) 3585 | -10/Mines | Entered Exiles 3585 | -10/Exiles | Accompanied by 2 allies 3586 | -10/Exiles | Identified exit to Mines 3625 | -10/Exiles | Met 8R-AWN 3661 | -10/Exiles | Met EX-HEX 3765 | -10/Exiles | Met EX-DEC 3808 | -10/Exiles | Learned location of Zion (-6) 3865 | -10/Exiles | Met EX-BIN 4101 | -10/Exiles | Entered Mines 4101 | -9/Mines | Accompanied by 2 allies 4102 | -9/Mines | Assembled infested the area 4153 | -9/Mines | Destroyed 14 combat bots 4171 | -9/Mines | Core integrity fell below 20% 4183 | -9/Mines | Destroyed by D-53 Grenadier with Mini Grenade Launcher Last Messages --------------- 04126_ as-90843 destroyed. 04126_ as-90639 destroyed. 04126_ as-61348 destroyed. 04128_ as-25411 destroyed. 04129_ The unstable cave ceiling collapses. 04130_ Destroyed Asb. Hover Unit. 04131_ The unstable cave ceiling collapses. 04132_ Destroyed Asb. Rifle. 04132_ as-14309 destroyed. 04134_ Acquired 7 matter. 04135_ The unstable cave ceiling collapses. 04137_ Acquired 54 matter. 04144_ The unstable cave ceiling collapses. 04165_ as-39387 destroyed. [Achievement: Exterminator] 04170_ C-45 Heavy ARC bursts open, deploying its payload. 04170_ D-53 Grenadier unfolds itself. 04171_ The unstable cave ceiling collapses. 04174_ Grenade Launcher destroyed. 04177_ The unstable cave ceiling collapses. Map ----- +----------------------------------------------------+ | ????????????# #??????????????????????????? | | ????????????# #??????????????????????????? | | ????????????# ##?????????????????????????? | | ???????????## ##????????????????????????? | | ???????????# #????????????????????????? | | ???????????# * #????????????????????????? | | ???????????# " #?????????????????????????? | | ???????????# "=%#?????????????????????????? | | ?????????###! * ##????????????????????????? | | ?????????# = ##???????????????????????? | | ?????????# ## #???????????????????????? | | ?????????# # #???????????????????????? | | ?????###### #???????????????????????? | | ?????# #???????????????????????? | | ?????# #???????????????????????? | | ?????## # # ##???????????????????????? | | ??????## #????????????????????????? | | ??????# # ##???????????????????????? | | ??????# d #???????????????????????? | | ??????# d # ##??????????????????????? | | ??????### < #??????????????????????? | | ????????# ##?????????????????????? | | ????????# ##????????????????????? | | ????????# ####?????????????????? | | ????????## a #?????????????????? | | ?????????## @ ## #?????????????? | | ??????????### #??? #?????????????? | | ????????????## ##?????? #?????????????? | | ?????????????## #??????????????????????? | | ??????????????## ##???????????????????????? | | ???????????????##?????????????????????????? | | ??????????????????????????????????????????? | | ??????????????????????????????????????????? | | ??????????????????????????????????????????? | | ??????????????????????????????????????????? | | ??????????????????????????????????????????? | | ??????????????????????????????????????????? | | ??????????????????????????????????????????? | | ??????????????????????????????????????????? | | ??????????????????????????????????????????? | | | | | | | | | | | | | | | | | | | | | +----------------------------------------------------+ Best States ------------- Heat Dissipation 35 Energy Generation 12 Energy Capacity 265 Matter Stores 300 Matter Capacity 300 Sight Range 16 Terrain Scan Density 10 Armor Coverage 150 Evasion (%) 40 Recoil Reduction 2 Item Schematics ----------------- None Robot Schematics ------------------ None Fabricated ------------ Nothing Repaired ---------- Lgt. Treads | 50% | -10/Materials Assault Rifle | 64% | -10/Materials Studied --------- None Alien Tech Used ----------------- None Achievements -------------- Exterminator Challenges ------------ None Game ------ Seed ThrowingNavigationExpander Manual? 0 Play Time 00:43:40 Cumulative 195.3 hours Start 2025.11.11 @ 17:12:23 End 2025.11.11 @ 17:57:01 Sessions 1 Manual Loads 0 Difficulty Rogue Special Mode None Game No. 67 Rogue 67 Adventurer 0 Explorer 0 Win Type - Total 1 Types 1/0/0/0/0/0/0/0/0/0 Lore% 51 Gallery% 48 Achievement% 34 Wizard Run 0 Options --------- Layout 0 ASCII 1 Keyboard 1 Movement Arrows Keybinds 0 Fullscreen 1 Font 24/Smallcaps Map View 76x50 Zoom Use 0% Tactical HUD 1 Map Filters NONE Filters NONE Steam 1 RUN: a7d47f8e-1699-429c-8b55-1fe6eed94ebe